bitfinex/quotes_ETHUSD_20250802
["timestamp","ask_amount","ask_price","bid_price","bid_amount"]
[1754143004299,0.9255,3521.2,3520.9,1.06180375]
[1754143006296,0.11239942,3521.3,3521.1,6.34803749]
[1754143006660,0.56539942,3521.3,3521.1,6.34803749]
[1754143006864,0.11239942,3521.3,3521.2,0.79039412]
[1754143007661,0.11239942,3521.3,3521.2,0.4725]
[1754143008422,0.11239942,3521.3,3521.2,1.4326]
[1754143014052,0.11239942,3521.3,3521.2,0.9666]
[1754143014816,0.11339942,3521.3,3521.2,0.9666]
[1754143015041,0.11339942,3521.3,3521.2,1.4386]
[1754143015247,0.11339942,3521.3,3521.2,2.21726375]
[1754143017423,0.11339942,3521.3,3521.2,1.74526375]
[1754143018380,0.11339942,3521.3,3521.2,2.21726375]
[1754143021438,0.11339942,3521.3,3521.2,1.74526375]
[1754143023035,0.11339942,3521.3,3521.2,2.21726375]
[1754143023624,0.11339942,3521.3,3521.2,2.76726375]
[1754143027951,0.11339942,3521.3,3521.2,1.80116375]
[1754143028150,0.56399942,3521.3,3521.2,1.25116375]
[1754143028468,0.11339942,3521.3,3521.2,1.25116375]
[1754143029380,1.00509942,3521.3,3521.2,1.25116375]
[1754143030237,0.11339942,3521.3,3521.2,1.25116375]
[1754143030456,0.11339942,3521.3,3521.2,1.73456375]
[1754143030662,1.00509942,3521.3,3521.2,0.4725]
[1754143032054,0.56399942,3521.3,3521.2,0.4725]
[1754143032260,1.00509942,3521.3,3521.2,0.4725]
[1754143033864,1.00509942,3521.3,3520.8,6.34803749]
[1754143034161,0.8917,3521.2,3520.9,0.85397]
[1754143034379,0.8917,3521.1,3520.9,0.85397]
[1754143034541,0.11339942,3521.3,3520.9,0.85397]
[1754143034751,0.8917,3521.2,3520.9,0.85397]
[1754143034947,0.8917,3521.1,3520.9,0.85397]
[1754143035173,0.4506,3521.0,3520.9,0.85397]
[1754143035349,0.8917,3521.0,3520.9,0.85397]
[1754143039477,0.001,3521.2,3520.9,0.85397]
[1754143039784,0.001,3521.2,3521.1,6.34803749]
[1754143039984,0.4516,3521.2,3521.1,6.34803749]
[1754143040954,0.001,3521.2,3521.1,6.34803749]
[1754143041404,0.001,3521.2,3521.1,7.30343749]
[1754143041606,0.001,3521.2,3521.1,7.68532949]
[1754143041771,0.001,3521.2,3521.1,8.09451651]
[1754143044204,0.001,3521.2,3521.1,9.04971651]
[1754143045272,0.11339942,3521.3,3521.2,3.55]
[1754143045492,0.11339942,3521.3,3521.2,4.5052]
[1754143045680,0.11339942,3521.3,3521.2,5.76517165]
[1754143048504,0.11339942,3521.3,3521.2,5.29077165]
[1754143049008,0.11339942,3521.3,3521.2,5.76517165]
[1754143050281,0.11339942,3521.3,3521.2,6.21037165]
[1754143059618,0.14,3522.2,3521.2,10.48037165]
[1754143059914,0.14,3522.2,3522.1,6.34803749]
[1754143060281,0.14,3522.2,3522.1,6.89803749]
[1754143060488,0.14,3522.2,3522.1,7.37883749]
[1754143061107,0.14,3522.2,3522.1,7.89900749]
[1754143061418,0.14,3522.2,3522.1,8.37340749]
[1754143061716,0.14,3522.2,3522.1,9.22490824]
[1754143063519,0.14,3522.2,3522.1,8.26970824]
[1754143063686,0.03327,3522.6,3522.5,6.34803749]
[1754143063890,0.52017,3522.6,3522.5,6.34803749]
[1754143064379,0.96537,3522.6,3522.5,6.86820749]
[1754143067011,0.03327,3522.6,3522.5,6.86820749]
[1754143067214,0.03327,3522.6,3522.5,9.06022824]
[1754143068291,0.4869,3523.5,3522.6,3.0]
[1754143068498,0.4869,3523.5,3523.4,6.34803749]
[1754143069127,0.9321,3523.5,3523.4,6.34803749]
[1754143069334,0.9321,3523.5,3523.4,6.83493749]
[1754143070535,0.9321,3523.5,3523.4,0.4869]
[1754143071111,30.9321,3523.5,3523.4,0.4869]
[1754143071312,30.0,3523.4,3522.1,6.34803749]
[1754143071541,30.0,3523.4,3522.4,6.34803749]
[1754143072036,30.0,3523.2,3522.4,6.34803749]
[1754143072250,3.0,3523.6,3522.4,6.34803749]
[1754143072448,0.8888,3523.1,3522.4,6.34803749]
[1754143072599,0.8888,3523.0,3522.4,6.34803749]
[1754143072804,0.8888,3522.9,3522.7,6.34803749]
[1754143073032,0.8888,3522.8,3522.7,6.34803749]
[1754143073555,0.8888,3522.8,3522.3,6.34803749]
[1754143073714,3.0,3524.1,3522.3,6.34803749]
[1754143073715,0.8888,3522.7,3522.3,6.34803749]
[1754143073914,0.55,3524.0,3522.3,6.34803749]
[1754143074150,0.8888,3522.6,3522.3,6.34803749]
[1754143074312,0.8888,3522.5,3522.3,6.34803749]
[1754143074507,0.8888,3522.4,3521.9,0.853666]
[1754143074703,0.8888,3522.3,3521.9,0.853666]
[1754143074908,0.8888,3522.2,3521.9,0.853666]
[1754143075122,0.8888,3522.1,3521.9,7.20170349]
[1754143077036,0.4605,3522.1,3521.9,7.20170349]
[1754143078344,0.8888,3522.3,3521.9,7.20170349]
[1754143078539,0.8888,3522.3,3522.2,6.34803749]
[1754143078540,0.4283,3522.3,3522.2,6.34803749]
[1754143079157,0.8888,3522.3,3522.2,6.34803749]
[1754143079518,0.8888,3522.3,3522.2,7.20176449]
[1754143080655,0.55,3524.0,3522.2,7.20176449]
[1754143080656,0.4605,3522.6,3522.2,7.20176449]
[1754143080857,0.8888,3522.5,3522.2,7.20176449]
[1754143081058,0.4605,3522.7,3522.2,7.68216449]
[1754143081271,0.4283,3522.7,3522.5,6.34803749]
[1754143081456,0.001,3523.0,3522.5,6.34803749]
[1754143081771,0.4605,3522.9,3522.5,6.82843749]
[1754143082067,0.4605,3522.8,3522.6,0.141741]
[1754143083357,0.4605,3522.7,3522.6,0.141741]
[1754143083527,0.001,3523.0,3522.6,0.622141]
[1754143083730,0.001,3523.0,3522.6,0.141741]
[1754143083924,0.4605,3522.9,3522.6,0.141741]
[1754143084252,0.4605,3522.8,3522.6,0.141741]
[1754143084626,0.8888,3522.9,3522.6,0.141741]
[1754143084974,0.4605,3522.9,3522.8,6.34803749]
[1754143085170,0.4605,3522.8,3522.2,6.34803749]
[1754143085522,0.4605,3522.8,3521.7,0.949]
[1754143085523,0.4283,3522.7,3521.7,0.949]
[1754143085728,0.4605,3522.6,3522.2,0.4605]
[1754143086033,0.4283,3522.5,3522.2,0.4605]
[1754143086237,0.8888,3522.4,3522.2,0.4605]
[1754143086434,0.8888,3522.3,3522.2,0.4605]
[1754143089138,33.8888,3522.3,3522.2,0.4605]
[1754143089379,3.0,3522.2,3521.5,0.002]
[1754143089575,0.8888,3522.2,3521.5,0.002]
[1754143089740,30.0,3522.0,3521.5,0.002]
[1754143089938,4.04778648,3523.3,3521.5,0.002]
[1754143089939,0.8888,3521.9,3521.5,0.002]
[1754143090157,0.8888,3521.8,3521.5,0.002]
[1754143090637,0.8888,3521.7,3521.5,0.002]
[1754143091115,3.001,3523.0,3521.5,0.002]
[1754143091116,0.8888,3521.6,3521.5,0.002]
[1754143093239,33.8888,3521.6,3521.5,0.002]
[1754143096271,34.02717152,3521.6,3521.5,0.002]
[1754143096484,34.57717152,3521.6,3521.5,0.002]
[1754143097085,40.92520901,3521.6,3521.5,0.002]
[1754143099832,34.57717152,3521.6,3521.5,0.002]
[1754143100328,40.92520901,3521.6,3521.5,0.002]
[1754143100470,41.23945277,3521.6,3521.5,0.002]
[1754143100670,41.54122536,3521.6,3521.5,0.002]
[1754143101123,44.38084371,3521.6,3521.5,0.002]
[1754143101484,41.54122536,3521.6,3521.5,0.002]
[1754143101691,44.38084371,3521.6,3521.5,0.002]
[1754143102122,57.19384371,3521.6,3521.1,0.002]
[1754143102450,42.73797841,3521.2,3521.1,0.002]
[1754143102615,39.89803749,3521.2,3521.1,0.002]
[1754143102816,40.85313749,3521.2,3521.1,0.002]
[1754143105024,40.85313749,3521.2,3519.1,0.4993]
[1754143105025,3.545,3521.0,3519.1,0.4993]
[1754143105190,30.0,3519.7,3518.6,0.4467]
[1754143105392,3.0,3519.4,3518.9,0.5013]
[1754143105616,3.0,3519.2,3519.0,0.4467]
[1754143105939,33.0,3519.1,3519.0,0.4993]
[1754143106259,33.0,3519.0,3518.9,0.002]
[1754143108346,0.4741,3519.4,3518.9,0.948]
[1754143108550,0.481,3519.6,3519.0,0.946]
[1754143108708,30.0,3519.3,3519.0,0.946]
[1754143108912,30.0,3519.3,3519.0,0.4993]
[1754143109142,30.0,3519.2,3518.9,0.002]
[1754143109344,33.0,3519.0,3518.9,0.002]
[1754143109543,3.0,3519.0,3518.9,0.4487]
[1754143110114,3.0,3519.0,3518.9,0.948]
[1754143110313,33.0,3519.0,3518.9,0.948]
[1754143110513,33.0,3519.0,3518.9,0.5013]
[1754143110707,3.0,3519.0,3518.9,0.948]
[1754143111011,33.0,3519.0,3518.9,0.948]
[1754143111209,3.0,3519.0,3518.9,0.948]
[1754143111420,33.3,3519.0,3518.9,0.002]
[1754143111622,34.8051,3519.0,3518.9,0.002]
[1754143111834,34.5051,3519.0,3518.9,0.002]
[1754143112447,4.5051,3519.0,3518.9,0.002]
[1754143112627,34.5051,3519.0,3518.9,0.002]
[1754143113212,34.5051,3519.0,3515.0,0.4467]
[1754143113213,2.995,3518.6,3515.0,0.4467]
[1754143113417,2.995,3518.6,3513.9,0.1487638]
[1754143113418,3.0,3516.8,3515.7,0.4467]
[1754143113654,0.55,3517.2,3515.1,9.7938747]
[1754143113886,0.12,3518.6,3516.7,0.946]
[1754143114058,0.12,3518.6,3516.8,0.946]
[1754143114059,3.0,3517.0,3516.8,0.946]
[1754143114260,3.0,3517.0,3515.3,0.114032]
[1754143114261,3.0,3516.8,3516.1,0.4467]
[1754143114462,33.0,3516.7,3516.1,0.4467]
[1754143114662,33.481,3516.7,3516.1,0.4467]
[1754143114864,33.0,3516.7,3516.1,0.4467]
[1754143115186,33.0,3516.7,3516.2,0.4993]
[1754143115187,33.13938179,3516.7,3516.2,0.4993]
[1754143115555,3.13938179,3516.7,3516.2,0.4993]
[1754143115760,33.13938179,3516.7,3516.2,0.4993]
[1754143116474,33.13938179,3516.7,3516.1,0.4467]
[1754143116475,34.09448179,3516.7,3515.9,0.5013]
[1754143116786,34.64448179,3516.7,3515.9,0.002]
[1754143117885,33.68938179,3516.7,3516.2,0.4993]
[1754143118084,33.68938179,3516.7,3515.9,0.002]
[1754143118085,3.13938179,3516.7,3515.9,0.002]
[1754143118256,33.13938179,3516.7,3516.3,0.5013]
[1754143118452,33.13938179,3516.7,3516.3,0.4487]
[1754143118665,33.13938179,3516.7,3516.6,0.5013]
[1754143118878,33.0,3516.7,3516.6,0.948]
[1754143120862,33.0,3516.7,3516.6,0.5013]
[1754143121317,33.0,3516.7,3516.6,0.948]
[1754143121841,33.0,3516.7,3516.6,0.5013]
[1754143122588,33.0,3516.7,3516.6,0.002]
[1754143122831,33.481,3516.7,3516.6,0.002]
[1754143123033,33.9551,3516.7,3516.6,0.002]
[1754143124204,34.5051,3516.7,3516.6,0.002]
[1754143125599,33.0,3516.7,3516.6,0.5013]
[1754143125798,33.0,3516.7,3516.6,0.948]
[1754143126026,0.21224419,3517.0,3516.6,0.948]
[1754143126027,30.0,3516.9,3516.6,0.948]
[1754143126198,30.0,3517.8,3516.7,0.946]
[1754143126400,30.0,3517.8,3516.6,0.002]
[1754143126633,30.0,3517.7,3516.8,0.946]
[1754143126935,0.13997695,3517.8,3516.6,0.002]
[1754143126936,0.13997695,3517.8,3516.9,0.946]
[1754143127137,30.0,3517.5,3517.0,0.946]
[1754143127350,30.0,3517.5,3516.6,0.002]
[1754143127351,30.0,3518.1,3517.1,0.946]
[1754143127505,30.14314276,3517.9,3517.2,0.4993]
[1754143127816,3.0,3517.8,3517.2,0.946]
[1754143128004,30.0,3517.7,3516.6,0.002]
[1754143128199,30.0,3517.7,3516.7,0.946]
[1754143128402,30.0,3517.7,3516.8,0.946]
[1754143128611,30.0,3517.9,3517.1,9.7938747]
[1754143128881,30.0,3518.3,3517.2,0.946]
[1754143129085,30.0,3518.3,3517.3,1.07398747]
[1754143129379,30.0,3518.3,3517.4,0.946]
[1754143129543,30.0,3518.3,3517.5,0.946]
[1754143129881,30.0,3518.3,3517.6,0.946]
[1754143130079,30.0,3518.3,3517.3,1.07398747]
[1754143130268,30.0,3518.3,3517.7,0.946]
[1754143130470,3.0,3518.4,3517.3,1.07398747]
[1754143130665,30.0,3518.3,3517.8,0.946]
[1754143130999,30.0,3518.3,3517.9,0.946]
[1754143131282,30.0,3518.3,3518.0,0.946]
[1754143131580,30.0,3518.3,3518.1,0.4993]
[1754143132143,33.0,3518.3,3518.2,0.4727]
[1754143132340,3.0,3518.3,3518.2,0.9369]
[1754143132544,30.0,3519.0,3518.2,0.9369]
[1754143132746,30.0,3518.8,3518.3,0.4727]
[1754143132946,30.0,3518.8,3517.3,1.07398747]
[1754143133179,30.0,3518.8,3517.4,0.9369]
[1754143133378,30.0,3518.8,3517.3,1.07398747]
[1754143133563,30.0,3518.8,3517.5,0.9369]
[1754143134102,30.0,3518.8,3517.6,0.9369]
[1754143134291,30.0,3518.8,3517.7,0.9369]
[1754143134488,0.8956,3519.2,3517.8,0.9369]
[1754143134665,0.8956,3519.2,3517.9,0.9369]
[1754143134666,3.0,3519.0,3517.9,0.9369]
[1754143134865,0.8956,3519.2,3517.4,1.08678622]
[1754143135061,3.0,3518.8,3517.5,0.9369]
[1754143135265,0.4536,3519.1,3517.6,0.9369]
[1754143135501,3.0,3518.7,3517.7,0.20236862]
[1754143135701,0.4536,3519.1,3517.7,0.9369]
[1754143135870,3.0,3518.7,3517.4,1.08678622]
[1754143136071,3.2159085,3518.9,3517.4,1.08678622]
[1754143136072,3.0,3518.9,3517.5,0.9369]
[1754143136285,3.0,3518.7,3517.6,0.9369]
[1754143136481,3.0,3518.9,3517.7,0.9369]
[1754143136800,30.0,3518.6,3517.8,0.9369]
[1754143137003,30.0,3518.6,3517.9,0.9369]
[1754143137209,0.8956,3518.5,3517.7,0.4727]
[1754143137366,30.0,3518.4,3517.7,0.4727]
[1754143137567,0.4536,3518.3,3517.7,0.4727]
[1754143138010,0.442,3518.2,3517.4,0.4727]
[1754143138168,0.4536,3518.1,3517.4,0.4727]
[1754143138571,0.4536,3518.1,3517.2,0.4642]
[1754143138871,0.442,3518.0,3517.2,0.4642]
[1754143139286,0.4536,3517.9,3517.2,0.4642]
[1754143139699,30.442,3517.8,3516.7,0.4727]
[1754143139896,0.8956,3517.7,3516.8,0.854785]
[1754143140209,0.8956,3517.7,3516.9,0.4727]
[1754143140793,0.76181744,3518.9,3517.0,0.4642]
[1754143141002,30.0,3517.9,3517.1,0.4727]
[1754143141195,30.0,3517.7,3517.1,0.4727]
[1754143141369,30.0,3517.9,3517.1,0.4727]
[1754143142384,30.0,3517.8,3517.1,0.4727]
[1754143142608,30.8956,3517.7,3516.6,0.002]
[1754143142911,30.0,3517.2,3516.6,0.002]
[1754143143067,3.0,3516.9,3516.6,0.002]
[1754143143410,3.0,3516.8,3516.6,0.002]
[1754143143566,30.0,3516.7,3516.6,0.002]
[1754143143771,0.442,3517.0,3516.6,0.002]
[1754143144322,30.0,3517.3,3516.6,0.002]
[1754143144506,3.0,3517.0,3516.7,0.9369]
[1754143144842,3.0,3517.3,3516.8,0.9369]
[1754143145038,30.0,3517.2,3516.8,0.4727]
[1754143145903,0.4536,3517.4,3516.6,0.002]
[1754143146146,0.4536,3517.4,3516.9,0.4727]
[1754143146517,3.0,3517.5,3516.9,0.4642]
[1754143146733,30.0,3517.4,3517.0,0.4727]
[1754143147741,30.0,3517.4,3516.8,0.4727]
[1754143148844,0.28497,3517.9,3517.1,9.7938747]
[1754143149031,0.001,3518.1,3517.1,9.7938747]
[1754143149203,0.001,3518.1,3517.2,0.4642]
[1754143149408,0.001,3518.1,3517.2,0.9369]
[1754143149608,0.001,3518.1,3517.3,0.9369]
[1754143150037,0.001,3518.1,3517.4,0.9369]
[1754143150408,0.001,3518.1,3517.5,0.9369]
[1754143150849,0.001,3518.1,3517.6,0.9369]
[1754143164490,0.4843,3518.1,3517.6,0.4727]
[1754143164697,0.4843,3518.1,3517.4,1.57127747]
[1754143164872,0.4843,3518.1,3517.5,0.4982]
[1754143165275,0.4843,3518.1,3517.5,0.69944775]
[1754143167996,0.001,3518.1,3517.6,0.9394]
[1754143170304,0.001,3518.1,3517.6,11.2832747]
[1754143171739,0.001,3518.1,3517.7,0.55]
[1754143171890,0.001,3518.1,3517.9,0.55]
[1754143172076,0.001,3518.1,3518.0,0.70178269]
[1754143172490,0.001,3518.1,3518.0,1.4894]
[1754143172805,0.001,3518.1,3518.0,7.83489867]
[1754143174010,0.9248,3518.1,3517.5,0.20124775]
[1754143174210,0.4833,3518.0,3517.5,0.20124775]
[1754143174517,0.4415,3518.1,3517.5,0.20124775]
[1754143174518,0.9238,3517.9,3517.5,0.20124775]
[1754143174810,0.9238,3517.9,3517.6,0.81180239]
[1754143175013,0.9238,3517.9,3517.5,0.20124775]
[1754143175627,0.4833,3517.9,3517.5,0.69944775]
[1754143176010,0.4833,3517.9,3517.5,0.20124775]
[1754143176389,0.4833,3517.9,3517.0,0.552]
[1754143176390,0.4405,3517.9,3517.4,0.55]
[1754143176607,0.4833,3517.8,3517.4,0.55]
[1754143177517,0.4833,3517.8,3517.3,0.4982]
[1754143177924,0.4833,3517.8,3517.3,0.9394]
[1754143178227,0.4833,3517.8,3517.3,0.4982]
[1754143178423,0.4833,3517.8,3517.4,1.07346476]
[1754143179228,0.4833,3517.8,3517.4,1.57166476]
[1754143180091,0.4405,3518.0,3517.4,1.07346476]
[1754143180290,0.4405,3518.0,3517.5,0.9394]
[1754143180698,0.001,3518.1,3517.4,1.07346476]
[1754143180914,0.001,3518.1,3517.6,0.9394]
[1754143181113,0.001,3518.1,3517.6,1.14068648]
[1754143181313,0.4843,3518.1,3517.6,1.14068648]
[1754143181624,0.4833,3518.0,3517.6,0.20128648]
[1754143181828,0.4833,3518.0,3517.6,0.69948648]
[1754143182628,0.4833,3518.0,3517.6,0.20128648]
[1754143183015,0.9238,3518.0,3517.6,0.20128648]
[1754143183424,0.4833,3517.9,3517.6,0.20128648]
[1754143183948,0.9238,3517.9,3517.1,0.4405]
[1754143184226,0.9038,3517.8,3517.0,0.002]
[1754143184526,0.4833,3517.9,3517.0,0.5002]
[1754143184712,0.4833,3517.9,3517.1,1.51486476]
[1754143185111,0.4833,3517.9,3517.0,0.002]
[1754143185323,30.0,3517.8,3517.0,0.002]
[1754143185723,0.4833,3517.7,3517.0,0.002]
[1754143186238,0.4405,3517.6,3517.0,0.002]
[1754143186732,0.4833,3517.5,3517.0,0.002]
[1754143187334,0.4405,3517.4,3517.0,0.002]
[1754143187702,0.4833,3517.3,3517.0,0.002]
[1754143188201,0.9238,3517.2,3517.0,0.002]
[1754143188404,0.4405,3517.1,3517.0,0.002]
[1754143188607,0.9238,3517.1,3517.0,0.002]
[1754143191944,33.9238,3517.1,3517.0,0.002]
[1754143193729,3.9238,3517.1,3517.0,0.002]
[1754143194050,33.9238,3517.1,3517.0,0.002]
[1754143195557,34.4738,3517.1,3517.0,0.002]
[1754143196257,34.75884,3517.1,3517.0,0.002]
[1754143198655,34.20884,3517.1,3517.0,0.002]
[1754143199658,33.76834,3517.1,3517.0,0.002]
[1754143199954,30.28504,3517.1,3517.0,0.002]
[1754143200159,30.0,3517.3,3517.0,0.4957]
[1754143200366,30.0,3517.1,3517.0,0.002]
[1754143200571,33.0,3517.1,3517.0,0.002]
[1754143200779,30.4869,3517.8,3517.0,0.9533]
[1754143201079,3.0,3517.3,3517.0,0.4957]
[1754143201251,30.0,3517.6,3517.0,0.4957]
[1754143201567,3.0,3517.3,3517.0,0.4957]
[1754143201759,30.0,3517.2,3517.0,0.4957]
[1754143201957,3.0,3517.3,3517.0,0.4957]
[1754143201958,0.4879,3517.9,3517.1,0.9513]
[1754143202150,30.0,3517.7,3517.2,0.4937]
[1754143202472,3.0,3517.6,3517.3,0.9513]
[1754143202664,30.0,3517.5,3517.4,0.9513]
[1754143202974,30.0,3517.5,3517.4,0.4937]
[1754143205162,30.0,3517.5,3517.1,0.4576]
[1754143205333,30.4869,3517.4,3517.0,0.002]
[1754143205533,30.0,3517.3,3517.0,0.002]
[1754143206033,30.0,3517.1,3517.0,0.002]
[1754143206687,30.0,3517.4,3517.0,0.002]
[1754143206851,30.0,3517.3,3517.0,0.002]
[1754143207037,3.0,3517.7,3517.0,0.002]
[1754143207235,0.001,3517.9,3517.7,0.55]
[1754143207449,0.001,3517.9,3517.8,0.4937]
[1754143207640,0.001,3517.9,3517.8,0.9513]
[1754143208348,0.001,3517.9,3517.8,2.02595476]
[1754143210339,0.001,3517.9,3517.8,0.4937]
[1754143211840,0.001,3517.9,3517.8,1.5013]
[1754143212601,0.001,3518.1,3517.9,0.55]
[1754143212757,0.001,3518.1,3517.9,1.0437]
[1754143213085,0.001,3518.1,3517.9,1.5013]
[1754143213255,0.001,3518.1,3518.0,1.65143]
[1754143214076,0.001,3518.1,3518.0,0.15013]
[1754143214289,0.001,3518.1,3517.8,0.4937]
[1754143215604,0.001,3518.1,3517.9,0.9513]
[1754143216010,0.001,3518.1,3517.9,0.4576]
[1754143216207,0.001,3518.1,3517.9,0.9513]
[1754143216414,0.001,3518.1,3517.6,10.25284761]
[1754143216618,0.001,3518.1,3517.7,1.03668186]
[1754143216819,0.001,3518.1,3517.7,1.53038186]
[1754143217004,0.001,3518.1,3517.8,0.4937]
[1754143217787,0.001,3518.1,3517.7,1.49428186]
[1754143217990,0.001,3518.1,3517.7,1.98798186]
[1754143218467,0.001,3518.1,3517.7,1.53038186]
[1754143218913,0.001,3518.1,3517.8,0.4937]
[1754143219415,0.001,3518.1,3517.7,1.03668186]
[1754143219622,0.4879,3518.1,3517.7,1.03668186]
[1754143219772,0.4879,3518.1,3517.3,0.9513]
[1754143220876,0.4493,3518.0,3517.3,0.4937]
[1754143221072,0.9362,3518.0,3517.3,0.4937]
[1754143222223,0.001,3518.1,3517.4,0.4405]
[1754143222718,0.001,3518.1,3517.6,9.79524761]
[1754143222921,0.001,3518.1,3517.6,10.86395237]
[1754143223121,0.001,3518.1,3517.7,0.8918]
[1754143223502,0.001,3518.1,3517.8,0.4513]
[1754143223834,30.4934,3518.0,3517.3,0.4513]
[1754143223976,0.4934,3517.9,3517.0,0.4533]
[1754143224177,0.001,3518.1,3517.7,9.79524761]
[1754143224693,0.001,3518.1,3517.8,0.4513]
[1754143224891,0.9222,3518.0,3517.2,0.4513]
[1754143225494,0.9222,3518.0,3517.0,1.41969476]
[1754143225677,0.9222,3518.0,3517.1,1.12149424]
[1754143225678,0.4934,3517.9,3517.1,1.12149424]
[1754143226822,30.0,3517.8,3517.0,1.41969476]
[1754143226975,0.4934,3517.7,3517.0,1.41969476]
[1754143227906,0.4288,3517.6,3517.0,0.002]
[1754143228618,0.4934,3517.5,3517.0,0.002]
[1754143229136,0.9222,3517.4,3517.0,0.002]
[1754143229634,0.4934,3517.4,3517.0,0.002]
[1754143229938,30.0,3517.6,3517.0,0.4533]
[1754143230077,0.4934,3517.4,3517.0,0.002]
[1754143230834,0.9222,3517.3,3517.0,0.002]
[1754143230996,3.0,3517.9,3517.0,0.002]
[1754143231193,30.9222,3517.8,3517.1,0.002]
[1754143231409,30.0,3517.7,3517.1,0.002]
[1754143231606,0.4934,3517.7,3517.1,0.002]
[1754143231794,30.0,3517.6,3517.1,0.002]
[1754143232113,0.9222,3517.5,3517.1,0.002]
[1754143232288,0.001,3518.1,3517.1,0.002]
[1754143232618,30.0,3517.8,3517.1,0.002]
[1754143232792,0.9222,3517.7,3517.1,0.002]
[1754143232992,30.0,3517.6,3517.1,0.002]
[1754143233419,30.4934,3517.6,3517.1,0.4533]
[1754143233609,0.4934,3517.5,3517.1,0.002]
[1754143234739,0.4934,3517.4,3517.1,0.002]
[1754143235041,0.9222,3517.4,3517.1,0.002]
[1754143235203,30.0,3517.3,3517.1,0.002]
[1754143235537,30.0,3517.2,3517.1,0.002]
[1754143236041,30.9222,3517.2,3517.1,0.002]
[1754143237036,31.13408444,3517.2,3517.1,0.002]
[1754143238107,34.13408444,3517.2,3517.1,0.002]
[1754143242188,4.13408444,3517.2,3517.1,0.002]
[1754143242400,34.13408444,3517.2,3517.1,0.002]
[1754143242831,34.68408444,3517.2,3517.1,0.002]
[1754143244233,4.13408444,3517.2,3517.1,0.002]
[1754143244412,34.13408444,3517.2,3517.1,0.002]
[1754143245351,33.21188444,3517.2,3517.1,0.002]
[1754143246637,34.13408444,3517.2,3517.1,0.002]
[1754143248417,33.21188444,3517.2,3517.1,0.002]
[1754143248758,3.21188444,3517.2,3517.1,0.002]
[1754143248959,3.21188444,3517.2,3517.1,0.8938]
[1754143248960,0.21188444,3517.2,3517.1,0.8938]
[1754143249167,0.4944,3518.1,3517.1,0.8938]
[1754143249373,30.0,3518.0,3517.1,0.8938]
[1754143249580,3.0,3517.6,3517.1,0.8938]
[1754143249877,3.0,3517.2,3517.1,0.8938]
[1754143250032,0.4288,3518.0,3517.1,0.002]
[1754143250033,30.0,3517.8,3517.1,0.002]
[1754143250239,30.0,3517.6,3517.1,0.002]
[1754143250452,30.0,3517.4,3517.1,0.4533]
[1754143250650,30.0,3517.4,3517.2,0.8918]
[1754143250851,30.0,3517.4,3517.2,0.4513]
[1754143251247,0.21308955,3517.4,3517.1,0.002]
[1754143251437,33.0,3517.2,3517.1,0.002]
[1754143251632,0.4934,3517.6,3517.1,0.4533]
[1754143251847,3.0,3517.2,3517.1,0.4636]
[1754143252139,3.0,3517.5,3517.1,0.4636]
[1754143252334,30.0,3517.4,3517.2,0.4616]
[1754143252643,3.0,3517.5,3517.3,0.9156]
[1754143252965,0.74832,3518.5,3517.4,0.9156]
[1754143253136,30.0,3518.0,3517.4,0.9156]
[1754143253338,3.0,3517.7,3517.3,9.79524761]
[1754143253656,3.0,3517.9,3517.5,0.9156]
[1754143253958,0.28592,3518.5,3517.6,0.9156]
[1754143254157,3.0,3517.9,3517.6,0.9156]
[1754143254364,3.0,3517.9,3517.7,0.9156]
[1754143254666,30.0,3518.0,3517.7,0.9156]
[1754143254838,30.0,3517.8,3517.7,0.4616]
[1754143255172,3.0,3517.5,3517.1,0.4636]
[1754143255373,30.0,3518.0,3517.3,0.4616]
[1754143255592,3.0,3517.9,3517.3,0.4616]
[1754143255882,0.74162,3518.5,3517.4,0.454]
[1754143256051,0.74162,3518.5,3517.1,0.002]
[1754143256052,3.0,3517.9,3517.1,0.002]
[1754143256374,30.4557,3518.0,3517.1,0.002]
[1754143256375,30.0,3517.4,3517.1,0.002]
[1754143258129,30.0,3517.4,3517.2,0.9156]
[1754143258432,0.74832,3518.5,3517.3,0.9156]
[1754143258583,3.0,3517.7,3517.3,0.9156]
[1754143258783,0.74832,3518.5,3517.4,0.9156]
[1754143259014,0.74832,3518.5,3517.5,0.4616]
[1754143259015,3.0,3517.7,3517.5,0.4616]
[1754143259215,0.74832,3518.5,3517.2,9.79524761]
[1754143259216,30.0,3518.0,3517.6,0.454]
[1754143259419,30.0,3517.8,3517.6,0.9156]
[1754143259623,3.0,3517.7,3517.6,0.4616]
[1754143259791,0.74832,3518.5,3517.3,0.4616]
[1754143259792,30.0,3517.6,3517.3,0.4616]
[1754143259995,3.0,3517.8,3517.3,0.4616]
[1754143260193,3.0,3517.6,3517.4,0.4616]
[1754143260404,3.0,3517.8,3517.5,0.4616]
[1754143260608,0.4557,3518.0,3517.5,0.4616]